Department family,Entity,Date,Expense type,Expense area,Supplier,Transaction number,Amount
The National Archives,The National Archives,06/12/2010,IT hardware Additions,Technology,SPECIALIST COMPUTER CENTRES,57959,"10,080.44"
The National Archives,The National Archives,06/12/2010,Facilities Management,Public Services,ECOVERT FM,57972,"94,424.35"
The National Archives,The National Archives,06/12/2010,IT hardware Additions,Technology,COMPUTER SALES AGENCY WAVERLEY,58009,"10,235.66"
The National Archives,The National Archives,06/12/2010,IT hardware Additions,Technology,COMPUTER SALES AGENCY WAVERLEY,58009,"10,664.77"
The National Archives,The National Archives,06/12/2010,Minor IT,Technology,COMPUTER SALES AGENCY WAVERLEY,58009,"14,073.30"
The National Archives,The National Archives,06/12/2010,Minor IT,Technology,COMPUTER SALES AGENCY WAVERLEY,58009,"13,541.64"
The National Archives,The National Archives,06/12/2010,Contractors,Public Services,GARDINER & THEOBALD LLP,58079,"13,500.00"
The National Archives,The National Archives,06/12/2010,HSE Licensing,Information Policy & Services,HEALTH AND SAFETY EXECUTIVE,58133,"31,782.56"
The National Archives,The National Archives,06/12/2010,Kew 1 building additions,Public Services,ECOVERT FM,58172,"28,933.16"
The National Archives,The National Archives,06/12/2010,Plant and Equipment additions,Public Services,ECOVERT FM,58185,"91,355.85"
The National Archives,The National Archives,06/12/2010,Kew 1 building additions,Public Services,ECOVERT FM,58187,"78,000.01"
The National Archives,The National Archives,06/12/2010,Minor Maintenance,Public Services,ECOVERT FM,58189,"13,265.79"
The National Archives,The National Archives,06/12/2010,Plant and Equipment additions,Public Services,ECOVERT FM,58191,"12,436.11"
The National Archives,The National Archives,06/12/2010,Minor Maintenance,Public Services,ECOVERT FM,58193,"10,421.31"
The National Archives,The National Archives,06/12/2010,Plant and Equipment additions,Public Services,ECOVERT FM,58196,"39,305.00"
The National Archives,The National Archives,06/12/2010,Kew 1 building additions,Public Services,ECOVERT FM,58198,"59,846.45"
The National Archives,The National Archives,06/12/2010,Plant and Equipment additions,Public Services,ECOVERT FM,58230,"14,377.77"
The National Archives,The National Archives,15/12/2010,Utilities,Public Services,EDF ENERGY,58287,"67,704.23"
The National Archives,The National Archives,15/12/2010,Internet,Technology,HANZO ARCHIVES LTD,58291,"10,686.04"
The National Archives,The National Archives,15/12/2010,Plant and Equipment additions,Public Services,ECOVERT FM,58307,"17,382.04"
The National Archives,The National Archives,15/12/2010,Records Storage Space Rental,Public Services,DEEPSTORE LTD,58312,"35,497.62"
The National Archives,The National Archives,15/12/2010,Plant and Equipment additions,Public Services,ECOVERT FM,58345,"44,388.86"
The National Archives,The National Archives,15/12/2010,Kew 1 building additions,Public Services,ECOVERT FM,58366,"140,701.08"
The National Archives,The National Archives,15/12/2010,Audit Fees (Internal),Finance & Performance,RSM TENON AUDIT LIMITED,58382,"11,725.75"
The National Archives,The National Archives,15/12/2010,IT hardware Additions,Technology,SPECIALIST COMPUTER CENTRES,58398,"101,459.02"
The National Archives,The National Archives,15/12/2010,IT Maintenance & Support,Technology,SPECIALIST COMPUTER CENTRES,58398,"31,196.76"
The National Archives,The National Archives,15/12/2010,Contract cleaning,Public Services,DOUGLAND SUPPORT SERVICES LTD,58442,"21,441.94"
The National Archives,The National Archives,15/12/2010,PAS - Public Libraries,Information Policy & Services,DANDY BOOKSELLERS LTD,58447,"21,609.40"
The National Archives,The National Archives,15/12/2010,Microfilming,Customer & Business Development,CAPITA BUSINESS SERVICES LTD,58507,"13,387.30"
The National Archives,The National Archives,15/12/2010,IT Maintenance & Support,Technology,ADAPTAVIST LIMITED,58552,"50,000.00"
The National Archives,The National Archives,15/12/2010,Govt Procurement Card (GPC) purchases,Finance & Performance,ROYAL BANK OF SCOTLAND PLC,58583,"50,807.57"
The National Archives,The National Archives,15/12/2010,IT hardware Additions,Technology,FREEDOM COMMUNICATIONS (IUK) LTD,58614,"11,397.50"
The National Archives,The National Archives,15/12/2010,Utilities,Public Services,CORONA ENERGY RETAIL 4 LTD,58635,"11,000.25"
The National Archives,The National Archives,21/12/2010,IT Systems Development,Technology,SCISYS UK LIMITED,58696,"13,659.38"
The National Archives,The National Archives,21/12/2010,IT Systems Development,Technology,SCISYS UK LIMITED,58698,"12,507.88"
The National Archives,The National Archives,21/12/2010,Minor Furniture,Public Services,SENATOR INTERNATIONAL LTD,58786,"14,592.02"
The National Archives,The National Archives,21/12/2010,Minor Furniture,Public Services,SENATOR INTERNATIONAL LTD,58786,"14,592.03"
The National Archives,The National Archives,21/12/2010,Internet,Technology,HANZO ARCHIVES LTD,58808,"35,043.49"
